[Event "NJSK 2024 B"]
[Site "Groningen, Netherlands"]
[Date "2024.04.28"]
[Round "2.2"]
[White "Madularea, David"]
[Black "Kazarjan, Gachatur"]
[Result "0-1"]
[TimeControl "90min/40moves + 30min + 30sec/move"]
[WhiteElo "2022"]
[BlackElo "2203"]

1. e4 {[%clk 01:30:57]} {[%emt 00:00:02]} c5 {[%clk 01:30:56]} {[%emt
00:00:04]} 2. Nf3 {[%clk 01:31:21]} {[%emt 00:00:06]} d6 {[%clk 01:31:23]}
{[%emt 00:00:04]} 3. d4 {[%clk 01:31:46]} {[%emt 00:00:05]} cxd4 {[%clk
01:31:49]} {[%emt 00:00:04]} 4. Nxd4 {[%clk 01:32:09]} {[%emt 00:00:06]} Nf6
{[%clk 01:32:15]} {[%emt 00:00:05]} 5. Nc3 {[%clk 01:32:35]} {[%emt 00:00:05]}
Bd7 {[%clk 01:32:34]} {[%emt 00:00:12]} 6. f3 {[%clk 01:32:58]} {[%emt
00:00:06]} h5 {[%clk 01:32:59]} {[%emt 00:00:05]} 7. Be3 {[%clk 01:32:46]}
{[%emt 00:00:42]} Nc6 {[%clk 01:33:03]} {[%emt 00:00:27]} 8. Qd2 {[%clk
01:30:47]} {[%emt 00:02:28]} g6 {[%clk 01:32:23]} {[%emt 00:01:10]} 9. Bc4
{[%clk 01:31:09]} {[%emt 00:00:08]} Rc8 {[%clk 01:32:15]} {[%emt 00:00:38]} 10.
Nxc6 {[%clk 01:29:16]} {[%emt 00:02:23]} Bxc6 {[%clk 01:32:24]} {[%emt
00:00:22]} 11. O-O-O {[%clk 01:29:28]} {[%emt 00:00:18]} Qa5 {[%clk 01:28:53]}
{[%emt 00:04:02]} 12. Rhe1 {[%clk 01:14:46]} {[%emt 00:15:11]} Bg7 {[%clk
01:26:12]} {[%emt 00:03:12]} 13. Kb1 {[%clk 01:13:26]} {[%emt 00:01:49]} b5
{[%clk 01:21:28]} {[%emt 00:05:15]} 14. Nxb5 {[%clk 01:03:35]} {[%emt
00:10:21]} Qxd2 {[%clk 01:21:11]} {[%emt 00:00:47]} 15. Bxd2 {[%clk 01:03:54]}
{[%emt 00:00:10]} Bd7 {[%clk 01:12:01]} {[%emt 00:09:41]} 16. Bf1 {[%clk
00:56:35]} {[%emt 00:07:49]} O-O {[%clk 01:05:15]} {[%emt 00:07:16]} 17. c4
{[%clk 00:41:04]} {[%emt 00:16:01]} a6 {[%clk 01:01:39]} {[%emt 00:04:07]} 18.
Nc3 {[%clk 00:40:36]} {[%emt 00:00:57]} Rb8 {[%clk 01:00:15]} {[%emt 00:01:55]}
19. Kc2 {[%clk 00:37:22]} {[%emt 00:03:43]} Rfc8 {[%clk 01:00:01]} {[%emt
00:00:42]} 20. Bg5 {[%clk 00:35:19]} {[%emt 00:02:33]} Kf8 {[%clk 00:55:36]}
{[%emt 00:04:56]} 21. b3 {[%clk 00:24:04]} {[%emt 00:11:45]} Be6 {[%clk
00:48:33]} {[%emt 00:07:33]} 22. a3 {[%clk 00:12:02]} {[%emt 00:12:33]} Rb7
{[%clk 00:42:26]} {[%emt 00:06:37]} 23. Rd2 {[%clk 00:10:13]} {[%emt 00:02:18]}
Nd7 {[%clk 00:40:22]} {[%emt 00:02:34]} 24. Nd5 {[%clk 00:09:20]} {[%emt
00:01:23]} Ne5 {[%clk 00:39:42]} {[%emt 00:01:11]} 25. Be3 {[%clk 00:07:19]}
{[%emt 00:02:31]} Rcb8 {[%clk 00:33:54]} {[%emt 00:06:19]} 26. b4 {[%clk
00:06:37]} {[%emt 00:01:12]} Bd7 {[%clk 00:26:43]} {[%emt 00:07:41]} 27. Kb3
{[%clk 00:04:57]} {[%emt 00:02:10]} Nc6 {[%clk 00:27:01]} {[%emt 00:00:13]} 28.
c5 {[%clk 00:04:13]} {[%emt 00:01:14]} dxc5 {[%clk 00:22:36]} {[%emt 00:04:55]}
29. Bxc5 {[%clk 00:04:25]} {[%emt 00:00:18]} a5 {[%clk 00:19:49]} {[%emt
00:03:17]} 30. Ba6 {[%clk 00:04:10]} {[%emt 00:00:45]} axb4 {[%clk 00:19:31]}
{[%emt 00:00:48]} 31. Bxb7 {[%clk 00:04:12]} {[%emt 00:00:27]} Na5+ {[%clk
00:19:10]} {[%emt 00:00:51]} 32. Ka2 {[%clk 00:03:30]} {[%emt 00:01:12]} b3+
{[%clk 00:18:58]} {[%emt 00:00:42]} 33. Kb1 {[%clk 00:03:59]} Rxb7 {[%clk
00:18:55]} {[%emt 00:00:34]} 34. Nxe7 {[%clk 00:01:48]} {[%emt 00:02:40]} Nc4
{[%clk 00:18:44]} {[%emt 00:00:41]} 35. Rd3 {[%clk 00:01:40]} {[%emt 00:00:38]}
Ke8 {[%clk 00:18:03]} {[%emt 00:01:12]} 36. Rc1 {[%clk 00:00:47]} {[%emt
00:01:23]} Bb5 {[%emt 00:01:38]} 37. Rd5 {[%clk 00:00:45]} Rc7 {[%clk
00:16:26]} {[%emt 00:01:31]} 38. Bb4 {[%clk 00:00:49]} {[%emt 00:00:27]} Ba4
{[%clk 00:08:03]} {[%emt 00:08:54]} 39. Rcd1 {[%clk 00:00:35]} {[%emt
00:00:43]} f5 {[%clk 00:07:25]} {[%emt 00:01:08]} 40. Rd8+ {[%clk 00:00:34]}
{[%emt 00:00:32]} Kf7 {[%clk 00:07:50]} {[%emt 00:00:05]} 41. exf5 {[%clk
00:26:15]} {[%emt 00:04:48]} Rxe7 {[%clk 00:24:26]} {[%emt 00:13:54]} 42. fxg6+
{[%clk 00:24:32]} {[%emt 00:02:13]} Kf6 {[%clk 00:22:41]} {[%emt 00:02:15]} 43.
R8d6+ {[%clk 00:20:53]} {[%emt 00:04:09]} Nxd6 {[%clk 00:22:17]} {[%emt
00:00:54]} 44. Rxd6+ {[%clk 00:21:17]} {[%emt 00:00:05]} Kf5 {[%clk 00:20:45]}
{[%emt 00:02:02]} 45. Rd5+ {[%clk 00:12:24]} {[%emt 00:09:24]} Re5 {[%clk
00:19:41]} {[%emt 00:01:33]} 46. Rd7 {[%clk 00:12:44]} {[%emt 00:00:10]} Bxd7
{[%clk 00:20:02]} {[%emt 00:00:09]} 0-1

[Event "NJSK 2024 B"]
[Site "Groningen, Netherlands"]
[Date "2024.04.28"]
[Round "2.3"]
[White "Arnold, Rhys"]
[Black "Roolvink, William"]
[Result "1-0"]
[TimeControl "90min/40moves + 30min + 30sec/move"]
[WhiteElo "2185"]
[BlackElo "1966"]

1. e4 {[%clk 01:30:20]} {[%emt 00:00:39]} c6 {[%clk 01:30:55]} {[%emt
00:00:06]} 2. d4 {[%clk 01:30:36]} {[%emt 00:00:13]} d5 {[%clk 01:31:10]}
{[%emt 00:00:16]} 3. exd5 {[%clk 01:30:54]} {[%emt 00:00:12]} cxd5 {[%clk
01:31:36]} {[%emt 00:00:05]} 4. Nf3 {[%clk 01:31:18]} {[%emt 00:00:06]} Nc6
{[%clk 01:31:12]} {[%emt 00:00:54]} 5. Ne5 {[%clk 01:31:08]} {[%emt 00:00:40]}
Nf6 {[%clk 01:22:43]} {[%emt 00:08:59]} 6. Bb5 {[%clk 01:30:56]} {[%emt
00:00:42]} Bd7 {[%clk 01:20:59]} {[%emt 00:02:14]} 7. Nxd7 {[%clk 01:30:58]}
{[%emt 00:00:28]} Qxd7 {[%clk 01:21:04]} {[%emt 00:00:26]} 8. c3 {[%clk
01:30:59]} {[%emt 00:00:29]} e6 {[%clk 01:18:00]} {[%emt 00:03:34]} 9. O-O
{[%clk 01:30:56]} {[%emt 00:00:32]} Be7 {[%clk 01:14:42]} {[%emt 00:03:49]} 10.
a4 {[%clk 01:26:32]} {[%emt 00:04:55]} a6 {[%clk 01:13:25]} {[%emt 00:01:47]}
11. Bd3 {[%clk 01:26:41]} {[%emt 00:00:21]} O-O {[%clk 01:10:49]} {[%emt
00:03:06]} 12. Re1 {[%clk 01:24:38]} {[%emt 00:02:32]} Rfc8 {[%clk 01:07:46]}
{[%emt 00:03:34]} 13. a5 {[%clk 01:18:09]} {[%emt 00:07:00]} Bd8 {[%clk
01:06:28]} {[%emt 00:01:47]} 14. b4 {[%clk 01:16:49]} {[%emt 00:01:50]} Na7
{[%clk 01:04:16]} {[%emt 00:02:43]} 15. Qf3 {[%clk 00:58:44]} {[%emt 00:18:35]}
Nb5 {[%clk 00:56:56]} {[%emt 00:07:50]} 16. Bd2 {[%clk 00:50:20]} {[%emt
00:08:54]} Ne8 {[%clk 00:43:19]} {[%emt 00:14:06]} 17. Na3 {[%clk 00:46:31]}
{[%emt 00:04:20]} Ned6 {[%clk 00:42:53]} {[%emt 00:00:56]} 18. Nxb5 {[%clk
00:46:07]} {[%emt 00:00:54]} axb5 {[%clk 00:35:13]} {[%emt 00:08:10]} 19. Bf4
{[%clk 00:44:22]} {[%emt 00:02:15]} Nc4 {[%clk 00:33:56]} {[%emt 00:01:46]} 20.
Qe2 {[%clk 00:40:37]} {[%emt 00:04:14]} Ra6 {[%clk 00:29:15]} {[%emt 00:05:12]}
21. Ra2 {[%clk 00:37:09]} {[%emt 00:03:57]} Qc6 {[%clk 00:17:06]} {[%emt
00:12:39]} 22. Rea1 {[%clk 00:33:28]} {[%emt 00:04:10]} Rca8 {[%clk 00:12:53]}
{[%emt 00:04:44]} 23. g3 {[%clk 00:31:53]} {[%emt 00:02:05]} b6 {[%clk
00:07:17]} {[%emt 00:06:07]} 24. axb6 {[%clk 00:32:12]} {[%emt 00:00:11]} Rxa2
{[%clk 00:07:18]} {[%emt 00:00:29]} 25. Rxa2 {[%clk 00:32:36]} {[%emt
00:00:06]} Bxb6 {[%clk 00:06:48]} {[%emt 00:01:00]} 26. h4 {[%clk 00:32:12]}
{[%emt 00:00:54]} Qb7 {[%clk 00:06:41]} {[%emt 00:00:37]} 27. h5 {[%clk
00:28:52]} {[%emt 00:03:50]} Rxa2 {[%clk 00:05:23]} {[%emt 00:01:48]} 28. Qxa2
{[%clk 00:29:14]} {[%emt 00:00:07]} Qa7 {[%clk 00:04:06]} {[%emt 00:01:47]} 29.
Qb1 {[%clk 00:29:39]} {[%emt 00:00:05]} h6 {[%clk 00:03:12]} {[%emt 00:01:24]}
30. Qc1 {[%clk 00:26:12]} {[%emt 00:03:57]} Qa3 {[%clk 00:03:17]} {[%emt
00:00:26]} 31. Bxh6 {[%clk 00:09:10]} {[%emt 00:17:32]} gxh6 {[%clk 00:01:09]}
{[%emt 00:02:38]} 32. Qxh6 {[%clk 00:09:34]} {[%emt 00:00:05]} Qa7 {[%clk
00:01:24]} {[%emt 00:00:16]} 33. Bh7+ {[%clk 00:08:00]} {[%emt 00:02:05]} Kh8
{[%emt 00:00:02]} 34. Qf6+ {[%clk 00:06:39]} {[%emt 00:01:50]} Kxh7 {[%clk
00:02:20]} {[%emt 00:00:03]} 35. h6 {[%clk 00:07:04]} {[%emt 00:00:05]} Qa1+
{[%clk 00:00:52]} {[%emt 00:01:59]} 36. Kh2 {[%clk 00:07:18]} {[%emt 00:00:15]}
1-0

[Event "NJSK 2024 B"]
[Site "Groningen, Netherlands"]
[Date "2024.04.28"]
[Round "2.4"]
[White "Zhu, Chenwu"]
[Black "Van Arendonk, Polle"]
[Result "1-0"]
[TimeControl "90min/40moves + 30min + 30sec/move"]
[WhiteElo "2020"]
[BlackElo "1914"]

1. e4 {[%clk 01:30:58]} {[%emt 00:00:02]} e5 {[%clk 01:30:57]} {[%emt
00:00:03]} 2. Nf3 {[%clk 01:31:10]} {[%emt 00:00:17]} Nf6 {[%clk 01:31:22]}
{[%emt 00:00:05]} 3. Nc3 {[%clk 01:31:30]} {[%emt 00:00:10]} Nc6 {[%clk
01:31:47]} {[%emt 00:00:06]} 4. d4 {[%clk 01:31:35]} {[%emt 00:00:25]} exd4
{[%clk 01:32:11]} {[%emt 00:00:06]} 5. Nxd4 {[%clk 01:32:00]} {[%emt 00:00:05]}
Bb4 {[%clk 01:32:24]} {[%emt 00:00:17]} 6. Nxc6 {[%clk 01:32:20]} {[%emt
00:00:10]} bxc6 {[%clk 01:32:51]} {[%emt 00:00:03]} 7. Bd3 {[%clk 01:32:44]}
{[%emt 00:00:06]} O-O {[%clk 01:33:16]} {[%emt 00:00:05]} 8. O-O {[%clk
01:33:10]} {[%emt 00:00:04]} d5 {[%clk 01:33:43]} {[%emt 00:00:03]} 9. exd5
{[%clk 01:33:38]} {[%emt 00:00:02]} Bg4 {[%clk 01:34:08]} {[%emt 00:00:05]} 10.
Ne2 {[%clk 01:26:44]} {[%emt 00:07:24]} cxd5 {[%clk 01:33:07]} {[%emt
00:01:30]} 11. h3 {[%clk 01:26:08]} {[%emt 00:01:06]} Bh5 {[%clk 01:32:23]}
{[%emt 00:01:15]} 12. c3 {[%clk 01:23:55]} {[%emt 00:02:43]} Be7 {[%clk
01:29:08]} {[%emt 00:03:44]} 13. Qc2 {[%clk 01:20:35]} {[%emt 00:03:51]} Bg6
{[%clk 01:25:39]} {[%emt 00:04:00]} 14. Nd4 {[%clk 01:12:31]} {[%emt 00:08:33]}
Bxd3 {[%clk 01:09:19]} {[%emt 00:16:49]} 15. Qxd3 {[%clk 01:12:51]} {[%emt
00:00:10]} h6 {[%clk 01:09:09]} {[%emt 00:00:40]} 16. Nf5 {[%clk 01:09:33]}
{[%emt 00:03:48]} Kh8 {[%clk 00:57:40]} {[%emt 00:12:00]} 17. Bf4 {[%clk
00:52:55]} {[%emt 00:17:08]} Qd7 {[%clk 00:48:33]} {[%emt 00:09:37]} 18. g4
{[%clk 00:44:54]} {[%emt 00:08:31]} c6 {[%clk 00:42:42]} {[%emt 00:06:21]} 19.
Rae1 {[%clk 00:38:34]} {[%emt 00:06:49]} Rfe8 {[%clk 00:40:59]} {[%emt
00:02:14]} 20. Be5 {[%clk 00:36:53]} {[%emt 00:02:11]} Bd8 {[%clk 00:29:11]}
{[%emt 00:12:18]} 21. Qg3 {[%clk 00:22:27]} {[%emt 00:14:55]} Kh7 {[%clk
00:21:27]} {[%emt 00:08:14]} 22. Qd3 {[%clk 00:13:31]} {[%emt 00:09:26]} g6
{[%clk 00:17:20]} {[%emt 00:04:38]} 23. Ng3 {[%clk 00:13:02]} {[%emt 00:00:58]}
Re6 {[%clk 00:16:42]} {[%emt 00:01:08]} 24. c4 {[%clk 00:12:18]} {[%emt
00:01:14]} Bc7 {[%clk 00:16:08]} {[%emt 00:01:04]} 25. Bxc7 {[%clk 00:10:46]}
{[%emt 00:02:02]} Qxc7 {[%clk 00:15:42]} {[%emt 00:00:56]} 26. cxd5 {[%clk
00:11:06]} {[%emt 00:00:09]} cxd5 {[%clk 00:15:50]} {[%emt 00:00:21]} 27. Rc1
{[%clk 00:10:34]} {[%emt 00:01:03]} Qe7 {[%clk 00:15:41]} {[%emt 00:00:39]} 28.
Qd4 {[%clk 00:10:13]} {[%emt 00:00:51]} Rd8 {[%clk 00:11:08]} {[%emt 00:05:03]}
29. Kg2 {[%clk 00:09:31]} {[%emt 00:01:12]} Ne4 {[%clk 00:10:20]} {[%emt
00:01:18]} 30. Rc2 {[%clk 00:08:14]} {[%emt 00:01:46]} a6 {[%clk 00:09:38]}
{[%emt 00:01:13]} 31. Rfc1 {[%clk 00:08:18]} {[%emt 00:00:26]} Nxg3 {[%clk
00:09:03]} {[%emt 00:01:05]} 32. Kxg3 {[%clk 00:08:32]} {[%emt 00:00:16]} Re4
{[%clk 00:08:25]} {[%emt 00:01:08]} 33. Qd3 {[%clk 00:08:53]} {[%emt 00:00:09]}
Rd6 {[%clk 00:06:31]} {[%emt 00:02:24]} 34. Kg2 {[%clk 00:08:11]} {[%emt
00:01:12]} Re1 {[%clk 00:04:57]} {[%emt 00:02:04]} 35. Rc7 {[%clk 00:07:50]}
{[%emt 00:00:51]} Qe4+ {[%clk 00:04:00]} {[%emt 00:01:28]} 36. Qxe4 {[%emt
00:00:07]} Rxe4 {[%clk 00:04:21]} {[%emt 00:00:06]} 37. Rxf7+ {[%clk 00:08:40]}
{[%emt 00:00:06]} Kg8 {[%clk 00:04:47]} {[%emt 00:00:04]} 38. Ra7 {[%clk
00:08:26]} {[%emt 00:00:44]} Re8 {[%clk 00:05:05]} {[%emt 00:00:13]} 39. Rcc7
{[%clk 00:04:48]} {[%emt 00:04:08]} d4 {[%clk 00:05:15]} {[%emt 00:00:21]} 40.
Rg7+ {[%clk 00:04:50]} {[%emt 00:00:27]} Kh8 {[%clk 00:05:39]} {[%emt
00:00:06]} 41. Rgd7 {[%clk 00:03:52]} {[%emt 00:01:28]} Rxd7 {[%clk 00:23:44]}
{[%emt 00:12:26]} 42. Rxd7 {[%clk 00:34:17]} {[%emt 00:00:05]} Re2 {[%clk
00:24:11]} {[%emt 00:00:03]} 43. Rxd4 {[%clk 00:28:57]} {[%emt 00:05:50]} Rxb2
{[%clk 00:24:31]} {[%emt 00:00:10]} 44. a4 {[%clk 00:26:20]} {[%emt 00:03:07]}
Rb6 {[%clk 00:23:33]} {[%emt 00:01:28]} 45. a5 {[%clk 00:23:28]} {[%emt
00:03:23]} Rc6 {[%clk 00:23:06]} {[%emt 00:00:57]} 46. Rb4 {[%clk 00:22:30]}
{[%emt 00:01:28]} Rc5 {[%clk 00:23:31]} {[%emt 00:00:06]} 47. Rb6 {[%clk
00:21:06]} {[%emt 00:01:53]} Rxa5 {[%clk 00:23:56]} {[%emt 00:00:05]} 48. Rxg6
{[%clk 00:21:32]} {[%emt 00:00:04]} Kh7 {[%clk 00:24:22]} {[%emt 00:00:04]} 49.
Rb6 {[%clk 00:21:36]} {[%emt 00:00:26]} Ra3 {[%clk 00:22:16]} {[%emt 00:02:36]}
50. f4 {[%clk 00:20:21]} {[%emt 00:01:45]} a5 {[%clk 00:08:16]} {[%emt
00:14:30]} 51. Ra6 {[%clk 00:15:39]} {[%emt 00:05:12]} Ra2+ {[%clk 00:06:25]}
{[%emt 00:02:22]} 52. Kg3 {[%clk 00:15:36]} {[%emt 00:00:33]} Ra3+ {[%clk
00:06:52]} {[%emt 00:00:04]} 53. Kh4 {[%clk 00:15:38]} {[%emt 00:00:26]} a4
{[%clk 00:07:19]} {[%emt 00:00:04]} 54. g5 {[%clk 00:13:41]} {[%emt 00:02:27]}
hxg5+ {[%clk 00:07:44]} {[%emt 00:00:05]} 55. fxg5 {[%clk 00:14:06]} {[%emt
00:00:04]} Kg7 {[%clk 00:05:57]} {[%emt 00:02:17]} 56. Kg4 {[%clk 00:14:14]}
{[%emt 00:00:22]} Ra1 {[%clk 00:06:12]} {[%emt 00:00:15]} 57. Kh5 {[%clk
00:14:26]} {[%emt 00:00:17]} a3 {[%clk 00:06:13]} {[%emt 00:00:30]} 58. Ra7+
{[%clk 00:14:47]} {[%emt 00:00:08]} Kf8 {[%clk 00:04:57]} {[%emt 00:01:46]} 59.
g6 {[%clk 00:14:12]} {[%emt 00:01:05]} a2 {[%clk 00:04:44]} {[%emt 00:00:44]}
60. h4 {[%clk 00:12:28]} {[%emt 00:02:14]} Kg8 {[%clk 00:01:08]} {[%emt
00:04:06]} 61. Kh6 {[%clk 00:12:21]} {[%emt 00:00:37]} Rb1 {[%clk 00:01:21]}
{[%emt 00:00:17]} 62. Ra8+ {[%clk 00:12:42]} {[%emt 00:00:09]} 1-0

[Event "NJSK 2024 B"]
[Site "Groningen, Netherlands"]
[Date "2024.04.28"]
[Round "2.5"]
[White "Kumar, Prajit Sai"]
[Black "Fallaux, Storm"]
[Result "1-0"]
[TimeControl "90min/40moves + 30min + 30sec/move"]
[WhiteElo "2211"]
[BlackElo "1905"]

1. e4 {[%clk 01:30:56]} {[%emt 00:00:03]} c5 {[%clk 01:30:45]} {[%emt
00:00:15]} 2. Nf3 {[%clk 01:31:21]} {[%emt 00:00:05]} d6 {[%clk 01:31:11]}
{[%emt 00:00:05]} 3. d4 {[%clk 01:31:48]} {[%emt 00:00:03]} cxd4 {[%clk
01:31:35]} {[%emt 00:00:05]} 4. Nxd4 {[%clk 01:32:15]} {[%emt 00:00:03]} Nf6
{[%clk 01:32:01]} {[%emt 00:00:04]} 5. Nc3 {[%clk 01:32:40]} {[%emt 00:00:04]}
a6 {[%clk 01:32:28]} {[%emt 00:00:04]} 6. f3 {[%clk 01:33:06]} {[%emt
00:00:03]} e5 {[%clk 01:32:53]} {[%emt 00:00:06]} 7. Nb3 {[%clk 01:33:32]}
{[%emt 00:00:04]} Be6 {[%clk 01:33:17]} {[%emt 00:00:06]} 8. Be3 {[%clk
01:33:55]} {[%emt 00:00:07]} h5 {[%clk 01:33:43]} {[%emt 00:00:04]} 9. Nd5
{[%clk 01:33:28]} {[%emt 00:00:56]} Nxd5 {[%clk 01:30:46]} {[%emt 00:03:27]} 10.
exd5 {[%clk 01:33:51]} {[%emt 00:00:07]} Bf5 {[%clk 01:31:10]} {[%emt
00:00:06]} 11. Be2 {[%clk 01:30:54]} {[%emt 00:03:26]} Nd7 {[%clk 01:27:15]}
{[%emt 00:04:26]} 12. Qd2 {[%clk 01:29:38]} {[%emt 00:01:47]} Rc8 {[%clk
01:24:26]} {[%emt 00:03:20]} 13. c4 {[%clk 01:27:23]} {[%emt 00:02:44]} Be7
{[%clk 01:18:41]} {[%emt 00:06:14]} 14. O-O {[%clk 01:27:33]} {[%emt 00:00:20]}
b6 {[%clk 01:16:39]} {[%emt 00:02:33]} 15. f4 {[%clk 01:23:21]} {[%emt
00:04:41]} Bg4 {[%clk 01:00:58]} {[%emt 00:16:11]} 16. Bd3 {[%clk 01:11:45]}
{[%emt 00:12:06]} h4 {[%clk 00:57:05]} {[%emt 00:04:24]} 17. h3 {[%clk
01:04:15]} {[%emt 00:08:00]} Bh5 {[%clk 00:56:10]} {[%emt 00:01:25]} 18. Rac1
{[%clk 00:59:10]} {[%emt 00:05:35]} g6 {[%clk 00:46:07]} {[%emt 00:10:33]} 19.
Rce1 {[%clk 00:55:24]} {[%emt 00:04:16]} f5 {[%clk 00:37:04]} {[%emt 00:09:33]}
20. fxe5 {[%clk 00:46:27]} {[%emt 00:09:27]} dxe5 {[%clk 00:31:12]} {[%emt
00:06:22]} 21. d6 {[%clk 00:44:43]} {[%emt 00:02:13]} Bf6 {[%clk 00:30:22]}
{[%emt 00:01:20]} 22. c5 {[%clk 00:42:57]} {[%emt 00:02:17]} bxc5 {[%clk
00:22:36]} {[%emt 00:08:17]} 23. Bxa6 {[%clk 00:43:05]} {[%emt 00:00:22]} Rb8
{[%clk 00:22:09]} {[%emt 00:00:57]} 24. Bc4 {[%clk 00:41:03]} {[%emt 00:02:32]}
Qb6 {[%clk 00:20:17]} {[%emt 00:02:22]} 25. Qd5 {[%clk 00:39:27]} {[%emt
00:02:06]} Rf8 {[%clk 00:12:48]} {[%emt 00:07:59]} 26. Nxc5 {[%clk 00:36:19]}
{[%emt 00:03:38]} Qa7 {[%clk 00:10:35]} {[%emt 00:02:44]} 27. Na6 {[%clk
00:34:06]} {[%emt 00:02:43]} Qb7 {[%clk 00:08:10]} {[%emt 00:02:55]} 28. Qe6+
{[%clk 00:29:19]} {[%emt 00:05:17]} Kd8 {[%clk 00:08:39]} {[%emt 00:00:01]} 29.
Nxb8 {[%clk 00:29:41]} {[%emt 00:00:08]} Qxb8 {[%clk 00:08:08]} {[%emt
00:01:01]} 30. Qd5 {[%clk 00:29:07]} {[%emt 00:01:03]} f4 {[%clk 00:07:09]}
{[%emt 00:01:30]} 31. Qa5+ {[%clk 00:28:45]} {[%emt 00:00:52]} Ke8 {[%clk
00:07:26]} {[%emt 00:00:13]} 32. Bxf4 {[%clk 00:28:40]} {[%emt 00:00:34]} Qxd6
{[%clk 00:07:00]} {[%emt 00:00:56]} 33. Be3 {[%clk 00:27:30]} {[%emt 00:01:41]}
g5 {[%clk 00:05:47]} {[%emt 00:01:43]} 34. Bb5 {[%clk 00:26:54]} {[%emt
00:01:06]} g4 {[%clk 00:04:47]} {[%emt 00:01:31]} 35. Bxd7+ {[%clk 00:26:58]}
{[%emt 00:00:26]} Qxd7 {[%clk 00:04:51]} {[%emt 00:00:26]} 36. Qa8+ {[%clk
00:27:00]} {[%emt 00:00:28]} Kf7 {[%clk 00:05:03]} {[%emt 00:00:18]} 37. Rxf6+
{[%clk 00:27:17]} {[%emt 00:00:13]} 1-0

[Event "NJSK 2024 B"]
[Site "Groningen, Netherlands"]
[Date "2024.04.28"]
[Round "2.6"]
[White "Wink, Luka"]
[Black "Ponomarev, Ivan"]
[Result "1/2-1/2"]
[TimeControl "90min/40moves + 30min + 30sec/move"]
[WhiteElo "2082"]
[BlackElo "1924"]

1. e4 {[%clk 01:30:49]} {[%emt 00:00:10]} c5 {[%clk 01:30:58]} {[%emt
00:00:03]} 2. Nf3 {[%clk 01:31:09]} {[%emt 00:00:09]} e6 {[%clk 01:31:27]}
{[%emt 00:00:02]} 3. d4 {[%clk 01:31:31]} {[%emt 00:00:08]} cxd4 {[%clk
01:31:54]} {[%emt 00:00:03]} 4. Nxd4 {[%clk 01:31:53]} {[%emt 00:00:08]} Nc6
{[%clk 01:32:23]} {[%emt 00:00:01]} 5. Nc3 {[%clk 01:32:13]} {[%emt 00:00:10]}
Qc7 {[%clk 01:32:48]} {[%emt 00:00:06]} 6. Be3 {[%clk 01:32:09]} {[%emt
00:00:34]} a6 {[%clk 01:33:17]} {[%emt 00:00:02]} 7. g4 {[%clk 01:31:43]}
{[%emt 00:00:56]} b5 {[%clk 01:24:21]} {[%emt 00:09:26]} 8. Nxc6 {[%clk
01:32:00]} {[%emt 00:00:13]} Qxc6 {[%clk 01:24:25]} {[%emt 00:00:26]} 9. Qd2
{[%clk 01:32:04]} {[%emt 00:00:25]} Bb4 {[%clk 01:04:56]} {[%emt 00:20:00]} 10.
Bg2 {[%clk 01:22:11]} {[%emt 00:10:22]} Bxc3 {[%clk 00:58:35]} {[%emt
00:06:51]} 11. bxc3 {[%clk 01:21:41]} {[%emt 00:01:00]} Nf6 {[%clk 00:52:36]}
{[%emt 00:06:29]} 12. Qd4 {[%clk 01:09:08]} {[%emt 00:13:04]} O-O {[%clk
00:50:58]} {[%emt 00:02:08]} 13. g5 {[%clk 01:00:34]} {[%emt 00:09:04]} Ng4
{[%clk 00:39:49]} {[%emt 00:11:39]} 14. Bf4 {[%clk 00:55:37]} {[%emt 00:05:27]}
f6 {[%clk 00:16:13]} {[%emt 00:24:06]} 15. Bd6 {[%clk 00:54:16]} {[%emt
00:01:51]} Rf7 {[%clk 00:16:28]} {[%emt 00:00:15]} 16. h3 {[%clk 00:51:50]}
{[%emt 00:02:56]} Ne5 {[%clk 00:15:50]} {[%emt 00:01:07]} 17. Bxe5 {[%clk
00:51:23]} {[%emt 00:00:57]} fxe5 {[%clk 00:16:19]} {[%emt 00:00:01]} 18. Qxe5
{[%clk 00:50:44]} {[%emt 00:01:08]} Bb7 {[%clk 00:16:33]} {[%emt 00:00:16]} 19.
Rd1 {[%clk 00:41:49]} {[%emt 00:09:25]} Qc4 {[%clk 00:13:40]} {[%emt 00:03:24]}
20. a3 {[%clk 00:38:16]} {[%emt 00:04:03]} Rc8 {[%clk 00:07:20]} {[%emt
00:06:50]} 21. Rd3 {[%clk 00:37:55]} {[%emt 00:00:50]} Qa4 {[%clk 00:04:11]}
{[%emt 00:03:39]} 22. O-O {[%clk 00:34:26]} {[%emt 00:03:59]} Qxc2 {[%clk
00:04:32]} {[%emt 00:00:09]} 23. Re3 {[%clk 00:32:35]} {[%emt 00:02:21]} Rxf2
{[%clk 00:03:11]} {[%emt 00:01:51]} 24. Rxf2 {[%clk 00:31:57]} {[%emt
00:01:08]} Qc1+ {[%clk 00:03:41]} 25. Kh2 {[%clk 00:28:51]} {[%emt 00:03:35]}
Qxe3 {[%clk 00:04:09]} {[%emt 00:00:02]} 26. Rf3 {[%clk 00:28:48]} {[%emt
00:00:32]} Qc5 {[%clk 00:04:19]} {[%emt 00:00:21]} 27. Qf4 {[%clk 00:27:02]}
{[%emt 00:02:16]} Rf8 {[%clk 00:04:26]} {[%emt 00:00:23]} 28. Qxf8+ {[%clk
00:26:55]} {[%emt 00:00:37]} Qxf8 {[%clk 00:04:55]} {[%emt 00:00:02]} 29. Rxf8+
{[%clk 00:27:24]} {[%emt 00:00:01]} Kxf8 {[%clk 00:05:24]} 30. Kg3 {[%clk
00:27:33]} {[%emt 00:00:21]} h6 {[%clk 00:03:18]} {[%emt 00:02:36]} 31. gxh6
{[%clk 00:26:24]} {[%emt 00:01:39]} gxh6 {[%clk 00:03:47]} 32. Kf4 {[%clk
00:26:43]} {[%emt 00:00:11]} d6 {[%clk 00:03:27]} {[%emt 00:00:50]} 33. Bf1
{[%clk 00:25:54]} {[%emt 00:01:18]} Kg7 {[%clk 00:03:23]} {[%emt 00:00:35]} 34.
e5 {[%clk 00:25:11]} {[%emt 00:01:13]} d5 {[%clk 00:02:03]} {[%emt 00:01:50]}
35. Bd3 {[%clk 00:25:35]} {[%emt 00:00:06]} Bc6 {[%clk 00:02:02]} {[%emt
00:00:32]} 36. Ke3 {[%clk 00:25:01]} {[%emt 00:01:04]} Be8 {[%clk 00:01:16]}
{[%emt 00:01:16]} 37. Kd4 {[%clk 00:25:12]} {[%emt 00:00:18]} Bg6 {[%clk
00:01:45]} {[%emt 00:00:02]} 38. Be2 {[%clk 00:23:38]} {[%emt 00:02:04]} Bf5
{[%clk 00:01:00]} {[%emt 00:01:15]} 39. h4 {[%clk 00:23:55]} {[%emt 00:00:13]}
Kg6 {[%clk 00:00:59]} {[%emt 00:00:31]} 40. Kc5 {[%clk 00:23:42]} {[%emt
00:00:43]} Bc2 {[%clk 00:00:38]} {[%emt 00:00:51]} 41. Bg4 {[%clk 00:19:31]}
{[%emt 00:04:40]} Bf5 {[%clk 00:00:51]} {[%emt 00:00:18]} 42. Be2 {[%clk
00:19:54]} {[%emt 00:00:07]} Bc2 {[%clk 00:28:09]} {[%emt 00:03:12]} 43. Bg4
{[%clk 00:50:11]} {[%emt 00:00:13]} 1/2-1/2